[Event "Early-Titled-Tuesday-Blitz-October-24-2023"]
[Site "Chess.com"]
[Date "2023.10.24"]
[Round "10"]
[White "alexrustemov"]
[Black "sergeikim"]
[Result "1-0"]
[WhiteElo "2780"]
[BlackElo "2607"]
[TimeControl "180+1"]
[EndTime "9:53:45 PDT"]
[Termination "alexrustemov won on time"]

1. d4 {[%clk 0:03:00.9]} 1... Nf6 {[%clk 0:02:59.5]} 2. c4 {[%clk 0:03:01.4]}
2... g6 {[%clk 0:02:59.8]} 3. Nf3 {[%clk 0:03:01.8]} 3... d6 {[%clk 0:03:00.1]}
4. g3 {[%clk 0:03:02.1]} 4... Bg7 {[%clk 0:03:00.4]} 5. Bg2 {[%clk 0:03:02.6]}
5... O-O {[%clk 0:03:00.4]} 6. Nc3 {[%clk 0:03:03.1]} 6... Nbd7 {[%clk
0:02:58.6]} 7. O-O {[%clk 0:03:03.3]} 7... e5 {[%clk 0:02:58.2]} 8. e4 {[%clk
0:03:03.8]} 8... exd4 {[%clk 0:02:58.4]} 9. Nxd4 {[%clk 0:03:03.9]} 9... Re8
{[%clk 0:02:58.7]} 10. h3 {[%clk 0:03:04]} 10... Nc5 {[%clk 0:02:58.5]} 11. Re1
{[%clk 0:03:04.3]} 11... c6 {[%clk 0:02:58.6]} 12. Bf4 {[%clk 0:03:02.2]} 12...
Nh5 {[%clk 0:02:57.7]} 13. Be3 {[%clk 0:03:01.9]} 13... a5 {[%clk 0:02:57.9]}
14. Qc2 {[%clk 0:03:00.8]} 14... a4 {[%clk 0:02:57.7]} 15. Rad1 {[%clk 0:02:59]}
15... Qa5 {[%clk 0:02:57.6]} 16. b3 {[%clk 0:02:40.6]} 16... Nf6 {[%clk
0:02:49]} 17. Bf4 {[%clk 0:02:36.1]} 17... Bf8 {[%clk 0:02:47.7]} 18. Bd2 {[%clk
0:02:28.7]} 18... Qb6 {[%clk 0:02:34.8]} 19. Be3 {[%clk 0:02:26.4]} 19... Qa5
{[%clk 0:02:33.7]} 20. Rb1 {[%clk 0:02:23.8]} 20... axb3 {[%clk 0:02:29.6]} 21.
axb3 {[%clk 0:02:24.2]} 21... Qc7 {[%clk 0:02:28.5]} 22. b4 {[%clk 0:02:17.9]}
22... Ne6 {[%clk 0:02:28]} 23. Red1 {[%clk 0:02:11.3]} 23... Bg7 {[%clk
0:02:23.9]} 24. Qd2 {[%clk 0:02:08.4]} 24... Nd7 {[%clk 0:02:01.3]} 25. f4
{[%clk 0:02:06.6]} 25... Ra3 {[%clk 0:01:57.7]} 26. Ncb5 {[%clk 0:01:56.3]}
26... cxb5 {[%clk 0:01:52.8]} 27. Nxb5 {[%clk 0:01:56.9]} 27... Qxc4 {[%clk
0:01:49.1]} 28. Nxa3 {[%clk 0:01:54.7]} 28... Qa6 {[%clk 0:01:47.2]} 29. Qd3
{[%clk 0:01:51.9]} 29... Qa4 {[%clk 0:01:41.8]} 30. Nc4 {[%clk 0:01:47]} 30...
Ndf8 {[%clk 0:01:34.6]} 31. Nxd6 {[%clk 0:01:46.5]} 31... Rd8 {[%clk 0:01:34.9]}
32. e5 {[%clk 0:01:46.6]} 32... Bd7 {[%clk 0:01:25.7]} 33. Nxb7 {[%clk
0:01:43.8]} 33... Bb5 {[%clk 0:01:23.3]} 34. Nxd8 {[%clk 0:01:22.6]} 34... Bxd3
{[%clk 0:01:22]} 35. Rxd3 {[%clk 0:01:22.9]} 35... Qc2 {[%clk 0:00:50.4]} 36.
Rbd1 {[%clk 0:01:22.1]} 36... Qb2 {[%clk 0:00:46.2]} 37. Nc6 {[%clk 0:01:11.7]}
37... h5 {[%clk 0:00:39.2]} 38. R1d2 {[%clk 0:01:06.5]} 38... Qb1+ {[%clk
0:00:37.5]} 39. Kh2 {[%clk 0:01:07]} 39... h4 {[%clk 0:00:34.8]} 40. gxh4 {[%clk
0:01:05]} 40... Qe1 {[%clk 0:00:33]} 41. Bf2 {[%clk 0:00:59.8]} 41... Qb1 {[%clk
0:00:31.1]} 42. Bg3 {[%clk 0:00:57.9]} 42... Bh6 {[%clk 0:00:25.3]} 43. Rf2
{[%clk 0:00:56.5]} 43... Qxd3 {[%clk 0:00:23.7]} 44. f5 {[%clk 0:00:52.5]} 44...
gxf5 {[%clk 0:00:21.3]} 45. Ne7+ {[%clk 0:00:52.7]} 45... Kh8 {[%clk 0:00:19.6]}
46. Nxf5 {[%clk 0:00:53.2]} 46... Bg7 {[%clk 0:00:16.9]} 47. Nd6 {[%clk
0:00:52.6]} 47... Ng6 {[%clk 0:00:09.7]} 48. Nxf7+ {[%clk 0:00:49.3]} 48... Kg8
{[%clk 0:00:09.7]} 49. h5 {[%clk 0:00:49.3]} 49... Ne7 {[%clk 0:00:07.8]} 50. h6
{[%clk 0:00:47]} 50... Bf8 {[%clk 0:00:06.8]} 51. Rf6 {[%clk 0:00:40.5]} 51...
Nf5 {[%clk 0:00:05.5]} 52. Bf2 {[%clk 0:00:27.3]} 52... Nf4 {[%clk 0:00:02.9]}
53. h7+ {[%clk 0:00:16.3]} 53... Kxh7 {[%clk 0:00:02]} 54. Ng5+ {[%clk
0:00:16.4]} 54... Kg8 {[%clk 0:00:01.8]} 55. Ne6 {[%clk 0:00:07.1]} 1-0

[Event "Early-Titled-Tuesday-Blitz-October-24-2023"]
[Site "Chess.com"]
[Date "2023.10.24"]
[Round "10"]
[White "diamonds13"]
[Black "Juicy_Fork"]
[Result "1-0"]
[WhiteElo "2328"]
[BlackElo "2435"]
[TimeControl "180+1"]
[EndTime "9:53:46 PDT"]
[Termination "diamonds13 won by checkmate"]

1. d4 {[%clk 0:03:00.9]} 1... Nf6 {[%clk 0:02:39.6]} 2. c4 {[%clk 0:03:00.9]}
2... g6 {[%clk 0:02:39.8]} 3. Nc3 {[%clk 0:03:00]} 3... Bg7 {[%clk 0:02:40]} 4.
e4 {[%clk 0:03:00.2]} 4... d6 {[%clk 0:02:38.9]} 5. Bd3 {[%clk 0:03:00.3]} 5...
O-O {[%clk 0:02:37.4]} 6. Nge2 {[%clk 0:02:59.7]} 6... c5 {[%clk 0:02:33]} 7. d5
{[%clk 0:02:59.3]} 7... e6 {[%clk 0:02:31.5]} 8. h3 {[%clk 0:02:56.6]} 8... exd5
{[%clk 0:02:28.1]} 9. exd5 {[%clk 0:02:56.9]} 9... Nbd7 {[%clk 0:02:25.3]} 10.
f4 {[%clk 0:02:57.4]} 10... Re8 {[%clk 0:02:19.3]} 11. O-O {[%clk 0:02:56.7]}
11... a6 {[%clk 0:02:01.6]} 12. a4 {[%clk 0:02:55.5]} 12... h5 {[%clk
0:01:52.2]} 13. Bd2 {[%clk 0:02:50.5]} 13... h4 {[%clk 0:01:44.8]} 14. Qc2
{[%clk 0:02:45.2]} 14... Nh5 {[%clk 0:01:42.1]} 15. Ne4 {[%clk 0:02:38.1]} 15...
Nf8 {[%clk 0:01:30.7]} 16. Ng5 {[%clk 0:02:36.6]} 16... Rxe2 {[%clk 0:01:18]}
17. Bxe2 {[%clk 0:02:33.3]} 17... Ng3 {[%clk 0:01:17.9]} 18. Bg4 {[%clk
0:02:22.3]} 18... Bxg4 {[%clk 0:01:10.1]} 19. hxg4 {[%clk 0:02:22.1]} 19... Nxf1
{[%clk 0:01:10.1]} 20. Rxf1 {[%clk 0:02:21.2]} 20... Qf6 {[%clk 0:01:00.4]} 21.
Bc3 {[%clk 0:02:16.8]} 21... Qe7 {[%clk 0:00:57.3]} 22. Bxg7 {[%clk 0:01:52]}
22... Kxg7 {[%clk 0:00:44.4]} 23. Qf2 {[%clk 0:01:51.5]} 23... Nh7 {[%clk
0:00:40.5]} 24. Nf3 {[%clk 0:01:40.1]} 24... Nf6 {[%clk 0:00:37.1]} 25. Re1
{[%clk 0:01:26.1]} 25... Qd7 {[%clk 0:00:28.2]} 26. g5 {[%clk 0:01:04.2]} 26...
Nh5 {[%clk 0:00:16.4]} 27. Nxh4 {[%clk 0:01:01.9]} 27... Re8 {[%clk 0:00:11.3]}
28. f5 {[%clk 0:00:59.2]} 28... Rxe1+ {[%clk 0:00:10.1]} 29. Qxe1 {[%clk
0:00:59.3]} 29... Qxa4 {[%clk 0:00:09]} 30. f6+ {[%clk 0:00:58.1]} 30... Kg8
{[%clk 0:00:05]} 31. Qe7 {[%clk 0:00:56.1]} 31... Qa1+ {[%clk 0:00:03.9]} 32.
Kh2 {[%clk 0:00:55.3]} 32... Ng7 {[%clk 0:00:01.6]} 33. Qd8+ {[%clk 0:00:49.7]}
33... Kh7 {[%clk 0:00:01.8]} 34. fxg7 {[%clk 0:00:49.4]} 34... Kxg7 {[%clk
0:00:01.2]} 35. Qf6+ {[%clk 0:00:48.4]} 35... Kg8 {[%clk 0:00:01.8]} 36. Qd8+
{[%clk 0:00:46.8]} 36... Kg7 {[%clk 0:00:01.8]} 37. Qxd6 {[%clk 0:00:46.4]}
37... Qxb2 {[%clk 0:00:02]} 38. Nf3 {[%clk 0:00:44.1]} 38... Qc3 {[%clk
0:00:01.8]} 39. Qe5+ {[%clk 0:00:42.1]} 39... Qxe5+ {[%clk 0:00:01.7]} 40. Nxe5
{[%clk 0:00:42.7]} 40... a5 {[%clk 0:00:02.6]} 41. Nd3 {[%clk 0:00:35.3]} 41...
a4 {[%clk 0:00:02.5]} 42. Nxc5 {[%clk 0:00:34.6]} 42... a3 {[%clk 0:00:02]} 43.
Nb3 {[%clk 0:00:34.5]} 43... Kf8 {[%clk 0:00:02.4]} 44. c5 {[%clk 0:00:34.2]}
44... Ke7 {[%clk 0:00:03.3]} 45. d6+ {[%clk 0:00:34.4]} 45... Kd7 {[%clk
0:00:03.6]} 46. Kg3 {[%clk 0:00:34.8]} 46... Kc6 {[%clk 0:00:03.4]} 47. Kf4
{[%clk 0:00:34.5]} 47... b6 {[%clk 0:00:03.5]} 48. cxb6 {[%clk 0:00:29.4]} 48...
Kxd6 {[%clk 0:00:04.4]} 49. Ke4 {[%clk 0:00:26.2]} 49... Kc6 {[%clk 0:00:03.3]}
50. Ke5 {[%clk 0:00:26.4]} 50... Kxb6 {[%clk 0:00:03.9]} 51. Kf6 {[%clk
0:00:26.7]} 51... Kb5 {[%clk 0:00:04.8]} 52. Na1 {[%clk 0:00:25.1]} 52... Kb4
{[%clk 0:00:05.7]} 53. Nc2+ {[%clk 0:00:24.6]} 53... Kb3 {[%clk 0:00:01.9]} 54.
Nxa3 {[%clk 0:00:25.1]} 54... Kxa3 {[%clk 0:00:01.8]} 55. Kxf7 {[%clk
0:00:25.7]} 55... Kb3 {[%clk 0:00:02.7]} 56. Kxg6 {[%clk 0:00:26.2]} 56... Kc3
{[%clk 0:00:03.6]} 57. Kf6 {[%clk 0:00:26.9]} 57... Kd3 {[%clk 0:00:04.5]} 58.
g6 {[%clk 0:00:27.5]} 58... Ke3 {[%clk 0:00:05.4]} 59. g7 {[%clk 0:00:27.9]}
59... Kf2 {[%clk 0:00:06.3]} 60. g8=Q {[%clk 0:00:27.7]} 60... Kg1 {[%clk
0:00:06]} 61. g4 {[%clk 0:00:27.8]} 61... Kh2 {[%clk 0:00:06.9]} 62. g5 {[%clk
0:00:27.7]} 62... Kh1 {[%clk 0:00:07.8]} 63. g6 {[%clk 0:00:28]} 63... Kg1
{[%clk 0:00:08.7]} 64. g7 {[%clk 0:00:27.9]} 64... Kh1 {[%clk 0:00:09.6]} 65.
Qh7+ {[%clk 0:00:28.3]} 65... Kg1 {[%clk 0:00:10.5]} 66. g8=Q+ {[%clk
0:00:28.1]} 66... Kf2 {[%clk 0:00:11.1]} 67. Qh3 {[%clk 0:00:27]} 67... Ke1
{[%clk 0:00:12]} 68. Qgg2 {[%clk 0:00:26.2]} 68... Kd1 {[%clk 0:00:11.2]} 69.
Qhh1# {[%clk 0:00:26.2]} 1-0

[Event "Early-Titled-Tuesday-Blitz-October-24-2023"]
[Site "Chess.com"]
[Date "2023.10.24"]
[Round "10"]
[White "GHANDEEVAM2003"]
[Black "nihalsarin"]
[Result "1/2-1/2"]
[WhiteElo "3043"]
[BlackElo "3124"]
[TimeControl "180+1"]
[EndTime "9:53:48 PDT"]
[Termination "Game drawn by repetition"]

1. c4 {[%clk 0:03:00.9]} 1... a6 {[%clk 0:03:00.9]} 2. Nc3 {[%clk 0:02:58.2]}
2... e6 {[%clk 0:02:59.4]} 3. d4 {[%clk 0:02:56.9]} 3... d5 {[%clk 0:02:57.2]}
4. cxd5 {[%clk 0:02:52]} 4... exd5 {[%clk 0:02:58.1]} 5. Bf4 {[%clk 0:02:51.8]}
5... Nf6 {[%clk 0:02:54.9]} 6. e3 {[%clk 0:02:50.8]} 6... Bf5 {[%clk 0:02:46.2]}
7. Bd3 {[%clk 0:02:44.4]} 7... Bxd3 {[%clk 0:02:45.6]} 8. Qxd3 {[%clk
0:02:45.3]} 8... Be7 {[%clk 0:02:43.8]} 9. h3 {[%clk 0:02:38.1]} 9... O-O {[%clk
0:02:43.9]} 10. Nf3 {[%clk 0:02:38.2]} 10... Nbd7 {[%clk 0:02:43.5]} 11. g4
{[%clk 0:02:36]} 11... c6 {[%clk 0:02:44.1]} 12. O-O-O {[%clk 0:02:32.2]} 12...
Re8 {[%clk 0:02:41.6]} 13. Ne5 {[%clk 0:02:29.6]} 13... Bb4 {[%clk 0:02:35.4]}
14. Kb1 {[%clk 0:02:25.2]} 14... Nxe5 {[%clk 0:02:18.7]} 15. Bxe5 {[%clk
0:02:21.7]} 15... Bxc3 {[%clk 0:02:05.8]} 16. Qxc3 {[%clk 0:02:22.6]} 16... Ne4
{[%clk 0:02:06.1]} 17. Qc2 {[%clk 0:02:22.8]} 17... Nd6 {[%clk 0:02:06.9]} 18.
h4 {[%clk 0:02:11.3]} 18... Nc4 {[%clk 0:02:06.7]} 19. Bf4 {[%clk 0:02:09.9]}
19... a5 {[%clk 0:02:04.6]} 20. h5 {[%clk 0:02:05.2]} 20... Ra6 {[%clk
0:02:04.7]} 21. Ka1 {[%clk 0:02:02.5]} 21... a4 {[%clk 0:01:59.4]} 22. g5 {[%clk
0:01:58.6]} 22... Re6 {[%clk 0:01:12.7]} 23. Rhe1 {[%clk 0:00:59.5]} 23... Qa5
{[%clk 0:00:53.3]} 24. e4 {[%clk 0:00:54.1]} 24... Rb6 {[%clk 0:00:53.4]} 25.
Bc1 {[%clk 0:00:53.2]} 25... Qb5 {[%clk 0:00:30]} 26. e5 {[%clk 0:00:41.2]}
26... c5 {[%clk 0:00:30.2]} 27. dxc5 {[%clk 0:00:38.1]} 27... Rbc6 {[%clk
0:00:15.8]} 28. Rxd5 {[%clk 0:00:37.8]} 28... Rxc5 {[%clk 0:00:16.6]} 29. Rd8+
{[%clk 0:00:25.3]} 29... Re8 {[%clk 0:00:17]} 30. Red1 {[%clk 0:00:22.1]} 30...
Rxe5 {[%clk 0:00:14.9]} 31. f4 {[%clk 0:00:16.8]} 31... Re7 {[%clk 0:00:12.9]}
32. g6 {[%clk 0:00:16.2]} 32... fxg6 {[%clk 0:00:10.9]} 33. hxg6 {[%clk
0:00:17.1]} 33... hxg6 {[%clk 0:00:06.9]} 34. Qxg6 {[%clk 0:00:13.6]} 34... Qc6
{[%clk 0:00:07.4]} 35. Qh5 {[%clk 0:00:08.1]} 35... a3 {[%clk 0:00:04.4]} 36.
bxa3 {[%clk 0:00:06.7]} 36... Ne3 {[%clk 0:00:04.5]} 37. Rxe8+ {[%clk
0:00:03.7]} 37... Rxe8 {[%clk 0:00:04.5]} 38. Bxe3 {[%clk 0:00:03.9]} 38... Qc3+
{[%clk 0:00:04.3]} 39. Kb1 {[%clk 0:00:04.7]} 39... Qxe3 {[%clk 0:00:05]} 40.
Qd5+ {[%clk 0:00:04.9]} 40... Re6 {[%clk 0:00:04.3]} 41. f5 {[%clk 0:00:03.8]}
41... Qe4+ {[%clk 0:00:04.9]} 42. Qxe4 {[%clk 0:00:03.4]} 42... Rxe4 {[%clk
0:00:05.8]} 43. Rd7 {[%clk 0:00:03.3]} 43... Re5 {[%clk 0:00:06.5]} 44. Rxb7
{[%clk 0:00:03.6]} 44... Rxf5 {[%clk 0:00:07.3]} 45. a4 {[%clk 0:00:04.3]} 45...
Ra5 {[%clk 0:00:05.5]} 46. Rb4 {[%clk 0:00:05]} 46... Kf7 {[%clk 0:00:06.1]} 47.
Kb2 {[%clk 0:00:05.4]} 47... Ke6 {[%clk 0:00:06.8]} 48. Kb3 {[%clk 0:00:05.8]}
48... Kd6 {[%clk 0:00:07.5]} 49. Rb5 {[%clk 0:00:05.8]} 49... Ra7 {[%clk
0:00:07.2]} 50. Rg5 {[%clk 0:00:05.7]} 50... Kc6 {[%clk 0:00:06.9]} 51. a5
{[%clk 0:00:06.2]} 51... Rc7 {[%clk 0:00:06]} 52. Kb4 {[%clk 0:00:05.5]} 52...
Kb7 {[%clk 0:00:06.6]} 53. Kb5 {[%clk 0:00:05.6]} 53... Ka7 {[%clk 0:00:07.3]}
54. a6 {[%clk 0:00:05.5]} 54... Re7 {[%clk 0:00:07.4]} 55. a4 {[%clk 0:00:05.8]}
55... Rf7 {[%clk 0:00:07.9]} 56. Ka5 {[%clk 0:00:05.1]} 56... Re7 {[%clk
0:00:08.3]} 57. Kb5 {[%clk 0:00:05.6]} 57... Rf7 {[%clk 0:00:08.8]} 58. Ka5
{[%clk 0:00:06.3]} 58... Re7 {[%clk 0:00:09.4]} 59. Kb5 {[%clk 0:00:07]} 1/2-1/2

[Event "Early-Titled-Tuesday-Blitz-October-24-2023"]
[Site "Chess.com"]
[Date "2023.10.24"]
[Round "10"]
[White "HajiyevKanan"]
[Black "Chessbard1972"]
[Result "1/2-1/2"]
[WhiteElo "2535"]
[BlackElo "2349"]
[TimeControl "180+1"]
[EndTime "9:53:48 PDT"]
[Termination "Game drawn - insufficient material"]

1. d4 {[%clk 0:03:00.9]} 1... Nf6 {[%clk 0:02:58.5]} 2. Nf3 {[%clk 0:03:01.8]}
2... g6 {[%clk 0:02:57.9]} 3. c4 {[%clk 0:03:02.7]} 3... Bg7 {[%clk 0:02:55.6]}
4. g3 {[%clk 0:03:03.6]} 4... O-O {[%clk 0:02:54.1]} 5. Bg2 {[%clk 0:03:04.5]}
5... d5 {[%clk 0:02:54.3]} 6. O-O {[%clk 0:03:05.4]} 6... Nc6 {[%clk 0:02:53.8]}
7. c5 {[%clk 0:03:04.5]} 7... Ne4 {[%clk 0:02:51.1]} 8. Nc3 {[%clk 0:03:03.3]}
8... Bg4 {[%clk 0:02:45.8]} 9. e3 {[%clk 0:02:55.1]} 9... Qd7 {[%clk 0:02:44.5]}
10. Qb3 {[%clk 0:02:49.8]} 10... Nxc3 {[%clk 0:02:38.5]} 11. bxc3 {[%clk
0:02:47.8]} 11... Rab8 {[%clk 0:02:30.4]} 12. Ba3 {[%clk 0:02:38.6]} 12... Rfe8
{[%clk 0:02:28.3]} 13. Nd2 {[%clk 0:02:31.8]} 13... Red8 {[%clk 0:02:17.7]} 14.
Rfe1 {[%clk 0:02:29.4]} 14... e5 {[%clk 0:02:14.3]} 15. Nf3 {[%clk 0:02:06.2]}
15... b6 {[%clk 0:02:01.4]} 16. cxb6 {[%clk 0:02:06]} 16... axb6 {[%clk
0:02:01.3]} 17. Bb4 {[%clk 0:01:21.5]} 17... Ra8 {[%clk 0:01:54.8]} 18. a4
{[%clk 0:01:21.1]} 18... e4 {[%clk 0:01:52.5]} 19. Nd2 {[%clk 0:01:17.5]} 19...
Na5 {[%clk 0:01:50.3]} 20. Bxa5 {[%clk 0:01:17.1]} 20... Rxa5 {[%clk 0:01:49.7]}
21. c4 {[%clk 0:01:17.4]} 21... Be6 {[%clk 0:01:42.4]} 22. Qc2 {[%clk
0:01:06.2]} 22... f5 {[%clk 0:01:34.1]} 23. Rec1 {[%clk 0:01:02.5]} 23... c5
{[%clk 0:01:30.8]} 24. cxd5 {[%clk 0:00:58.3]} 24... Bxd5 {[%clk 0:01:27.8]} 25.
Nb3 {[%clk 0:00:36.1]} 25... Raa8 {[%clk 0:01:15]} 26. Bf1 {[%clk 0:00:24.8]}
26... Qf7 {[%clk 0:01:09.8]} 27. Bc4 {[%clk 0:00:22.3]} 27... Bxc4 {[%clk
0:01:08]} 28. Qxc4 {[%clk 0:00:23.2]} 28... cxd4 {[%clk 0:01:00.2]} 29. Nxd4
{[%clk 0:00:21.2]} 29... Qxc4 {[%clk 0:00:55.4]} 30. Rxc4 {[%clk 0:00:22.1]}
30... b5 {[%clk 0:00:51.7]} 31. Rb4 {[%clk 0:00:18.1]} 31... bxa4 {[%clk
0:00:50.1]} 32. Raxa4 {[%clk 0:00:16.4]} 32... Rxa4 {[%clk 0:00:50]} 33. Rxa4
{[%clk 0:00:17.3]} 33... Bxd4 {[%clk 0:00:49.1]} 34. exd4 {[%clk 0:00:18.2]}
34... Rd7 {[%clk 0:00:48.7]} 35. f3 {[%clk 0:00:17.8]} 35... Re7 {[%clk
0:00:43.7]} 36. Kf2 {[%clk 0:00:14.4]} 36... Kf7 {[%clk 0:00:40.9]} 37. Ra6
{[%clk 0:00:12]} 37... exf3 {[%clk 0:00:37.4]} 38. Kxf3 {[%clk 0:00:12]} 38...
Rb7 {[%clk 0:00:35.9]} 39. Ra3 {[%clk 0:00:11.6]} 39... Ke6 {[%clk 0:00:35.6]}
40. Kf4 {[%clk 0:00:09.7]} 40... Rb2 {[%clk 0:00:32.1]} 41. h4 {[%clk
0:00:08.8]} 41... Rd2 {[%clk 0:00:31.5]} 42. Kg5 {[%clk 0:00:05.4]} 42... Rxd4
{[%clk 0:00:30.2]} 43. Kh6 {[%clk 0:00:05.7]} 43... Rg4 {[%clk 0:00:28.8]} 44.
Kxh7 {[%clk 0:00:05.5]} 44... Ke5 {[%clk 0:00:26.9]} 45. Kh6 {[%clk 0:00:05.6]}
45... Ke4 {[%clk 0:00:25.9]} 46. Ra4+ {[%clk 0:00:04.2]} 46... Kf3 {[%clk
0:00:25.5]} 47. Rxg4 {[%clk 0:00:04.8]} 47... Kxg4 {[%clk 0:00:20]} 48. Kxg6
{[%clk 0:00:05.7]} 48... Kxg3 {[%clk 0:00:19.4]} 49. h5 {[%clk 0:00:05.3]} 49...
f4 {[%clk 0:00:20]} 50. h6 {[%clk 0:00:06.2]} 50... f3 {[%clk 0:00:20.6]} 51. h7
{[%clk 0:00:07.1]} 51... f2 {[%clk 0:00:21.1]} 52. h8=Q {[%clk 0:00:08]} 52...
f1=Q {[%clk 0:00:21.4]} 53. Qc3+ {[%clk 0:00:07.1]} 53... Kg2 {[%clk 0:00:20.6]}
54. Qd2+ {[%clk 0:00:05.8]} 54... Kg1 {[%clk 0:00:20.5]} 55. Kh5 {[%clk
0:00:04.5]} 55... Qf5+ {[%clk 0:00:19.1]} 56. Kh4 {[%clk 0:00:04.5]} 56... Qh7+
{[%clk 0:00:17.9]} 57. Kg3 {[%clk 0:00:04.7]} 57... Qg6+ {[%clk 0:00:18]} 58.
Kf3 {[%clk 0:00:05.5]} 58... Qf5+ {[%clk 0:00:17.8]} 59. Kg3 {[%clk 0:00:06.2]}
59... Qe5+ {[%clk 0:00:17.2]} 60. Kh3 {[%clk 0:00:06.4]} 60... Qh5+ {[%clk
0:00:17]} 61. Kg3 {[%clk 0:00:06.8]} 61... Qe5+ {[%clk 0:00:17]} 62. Kf3 {[%clk
0:00:07.5]} 62... Qf5+ {[%clk 0:00:17.1]} 63. Ke2 {[%clk 0:00:06.5]} 63... Qg4+
{[%clk 0:00:16.2]} 64. Ke3 {[%clk 0:00:06.7]} 64... Qg3+ {[%clk 0:00:15.7]} 65.
Ke4 {[%clk 0:00:06.9]} 65... Qg2+ {[%clk 0:00:15.6]} 66. Ke3 {[%clk 0:00:06]}
66... Qxd2+ {[%clk 0:00:14.7]} 67. Kxd2 {[%clk 0:00:06.9]} 1/2-1/2

[Event "Early-Titled-Tuesday-Blitz-October-24-2023"]
[Site "Chess.com"]
[Date "2023.10.24"]
[Round "10"]
[White "wanyaland"]
[Black "Keeper0416"]
[Result "1/2-1/2"]
[WhiteElo "2461"]
[BlackElo "2570"]
[TimeControl "180+1"]
[EndTime "9:53:49 PDT"]
[Termination "Game drawn by repetition"]

1. d4 {[%clk 0:02:53.1]} 1... Nf6 {[%clk 0:02:52.2]} 2. c4 {[%clk 0:02:48]} 2...
g6 {[%clk 0:02:50.8]} 3. Nc3 {[%clk 0:02:45.3]} 3... Bg7 {[%clk 0:02:51.4]} 4.
e4 {[%clk 0:02:45.4]} 4... d6 {[%clk 0:02:52.3]} 5. f3 {[%clk 0:02:45.9]} 5...
O-O {[%clk 0:02:52.2]} 6. Nge2 {[%clk 0:02:46.3]} 6... c5 {[%clk 0:02:49.4]} 7.
Be3 {[%clk 0:02:46.5]} 7... cxd4 {[%clk 0:02:49.3]} 8. Nxd4 {[%clk 0:02:45.6]}
8... Nc6 {[%clk 0:02:50.2]} 9. Qd2 {[%clk 0:02:45.8]} 9... Bd7 {[%clk
0:02:50.8]} 10. Rc1 {[%clk 0:02:44.4]} 10... Nxd4 {[%clk 0:02:51.2]} 11. Bxd4
{[%clk 0:02:43.4]} 11... Bc6 {[%clk 0:02:52.1]} 12. Be2 {[%clk 0:02:43.7]} 12...
a5 {[%clk 0:02:52.7]} 13. O-O {[%clk 0:02:44.1]} 13... a4 {[%clk 0:02:53.6]} 14.
Rfd1 {[%clk 0:02:42.9]} 14... Qa5 {[%clk 0:02:52.5]} 15. Bf1 {[%clk 0:02:42.4]}
15... Nd7 {[%clk 0:02:49.8]} 16. Be3 {[%clk 0:02:42.3]} 16... Rfc8 {[%clk
0:02:41.6]} 17. Rc2 {[%clk 0:02:41]} 17... Be5 {[%clk 0:02:35.6]} 18. Rdc1
{[%clk 0:02:39.8]} 18... e6 {[%clk 0:02:28.8]} 19. f4 {[%clk 0:02:34.1]} 19...
Bxc3 {[%clk 0:02:28]} 20. Rxc3 {[%clk 0:02:35]} 20... Nf6 {[%clk 0:02:23.9]} 21.
Qxd6 {[%clk 0:02:16.6]} 21... Nxe4 {[%clk 0:02:21.8]} 22. Qe7 {[%clk 0:02:16.5]}
22... Nxc3 {[%clk 0:02:18]} 23. Rxc3 {[%clk 0:02:16.5]} 23... Rd8 {[%clk
0:02:14.5]} 24. Qf6 {[%clk 0:02:13.8]} 24... Qf5 {[%clk 0:02:12.8]} 25. Bd4
{[%clk 0:02:12.1]} 25... Qxf6 {[%clk 0:02:11.7]} 26. Bxf6 {[%clk 0:02:12.7]}
26... Rd1 {[%clk 0:02:12.2]} 27. Rc2 {[%clk 0:02:02.7]} 27... h6 {[%clk
0:02:10.6]} 28. Kf2 {[%clk 0:02:01.2]} 28... Rc8 {[%clk 0:01:53.9]} 29. Be2
{[%clk 0:01:56.1]} 29... Rd7 {[%clk 0:01:52.8]} 30. b3 {[%clk 0:01:51.5]} 30...
axb3 {[%clk 0:01:41.1]} 31. axb3 {[%clk 0:01:52.4]} 31... Ra8 {[%clk 0:01:41.5]}
32. b4 {[%clk 0:01:49.9]} 32... Be4 {[%clk 0:01:41.4]} 33. Rb2 {[%clk
0:01:48.5]} 33... Ra3 {[%clk 0:01:41.5]} 34. c5 {[%clk 0:01:44.9]} 34... Rd5
{[%clk 0:01:32.9]} 35. Bc4 {[%clk 0:01:40.5]} 35... Rd1 {[%clk 0:01:31.1]} 36.
Be2 {[%clk 0:01:36]} 36... Rd5 {[%clk 0:01:16]} 37. Bc4 {[%clk 0:01:34.4]} 37...
Rf5 {[%clk 0:00:54.8]} 38. Be5 {[%clk 0:01:33.4]} 38... h5 {[%clk 0:00:44.9]}
39. Rd2 {[%clk 0:01:29.9]} 39... g5 {[%clk 0:00:44.4]} 40. g3 {[%clk 0:01:27.3]}
40... h4 {[%clk 0:00:42.1]} 41. Rd8+ {[%clk 0:01:21.5]} 41... Kh7 {[%clk
0:00:42.2]} 42. Rd7 {[%clk 0:01:19.2]} 42... Kg6 {[%clk 0:00:40.3]} 43. Rd8
{[%clk 0:01:00.3]} 43... f6 {[%clk 0:00:27]} 44. Bd6 {[%clk 0:00:59.4]} 44...
gxf4 {[%clk 0:00:26.8]} 45. gxf4 {[%clk 0:00:58.5]} 45... Rxf4+ {[%clk 0:00:27]}
46. Bxf4 {[%clk 0:00:56.9]} 46... Rf3+ {[%clk 0:00:27.6]} 47. Ke2 {[%clk
0:00:57]} 47... Rxf4 {[%clk 0:00:28]} 48. Ke3 {[%clk 0:00:57]} 48... e5 {[%clk
0:00:26.3]} 49. Be2 {[%clk 0:00:52.3]} 49... Bh1 {[%clk 0:00:21.8]} 50. b5
{[%clk 0:00:51.4]} 50... Rb4 {[%clk 0:00:20.6]} 51. Rd6 {[%clk 0:00:49.3]} 51...
Kf5 {[%clk 0:00:20.5]} 52. c6 {[%clk 0:00:47.1]} 52... bxc6 {[%clk 0:00:17.4]}
53. bxc6 {[%clk 0:00:48]} 53... Rb3+ {[%clk 0:00:17.7]} 54. Kf2 {[%clk 0:00:47]}
54... Rc3 {[%clk 0:00:17.2]} 55. Bb5 {[%clk 0:00:44.8]} 55... e4 {[%clk
0:00:15.6]} 56. Ke2 {[%clk 0:00:41.7]} 56... Rc5 {[%clk 0:00:12.8]} 57. Ke3
{[%clk 0:00:38.3]} 57... Rxb5 {[%clk 0:00:12.5]} 58. c7 {[%clk 0:00:37.3]} 58...
Rc5 {[%clk 0:00:12.9]} 59. Rd5+ {[%clk 0:00:36.4]} 59... Rxd5 {[%clk 0:00:13.2]}
60. c8=Q+ {[%clk 0:00:35.6]} 60... Ke5 {[%clk 0:00:10.6]} 61. Qc3+ {[%clk
0:00:34]} 61... Kf5 {[%clk 0:00:09.6]} 62. Qc8+ {[%clk 0:00:33.2]} 62... Ke5
{[%clk 0:00:09.5]} 63. Qe8+ {[%clk 0:00:33.2]} 63... Kf5 {[%clk 0:00:08.9]} 64.
Qc8+ {[%clk 0:00:29.2]} 1/2-1/2